bitfinex-derivatives/quotes_BTCF0:USTF0_20250527
["timestamp","ask_amount","ask_price","bid_price","bid_amount"]
[1748367215827,0.00112,110090.0,110080.0,1.34823658]
[1748367216026,0.00012,110090.0,110080.0,1.71103658]
[1748367217326,0.1816985,110090.0,110080.0,1.71103658]
[1748367218919,0.2224985,110090.0,110080.0,1.79583658]
[1748367219616,0.2224985,110090.0,110080.0,1.70499658]
[1748367219816,0.04092,110090.0,110080.0,1.70499658]
[1748367220328,0.00012,110090.0,110080.0,1.70499658]
[1748367220525,0.04093626,110100.0,110090.0,0.1815785]
[1748367220733,0.04093626,110100.0,110090.0,1.33257514]
[1748367221040,0.04093626,110100.0,110090.0,1.47690977]
[1748367221330,0.22249826,110100.0,110090.0,1.47690977]
[1748367221524,0.22249826,110100.0,110090.0,1.38607777]
[1748367221724,0.22349826,110100.0,110090.0,1.38607777]
[1748367222121,0.26559826,110100.0,110090.0,1.38607777]
[1748367222320,0.26659826,110100.0,110090.0,1.38607777]
[1748367222925,0.26671826,110100.0,110090.0,1.38607777]
[1748367223124,0.08515626,110100.0,110090.0,1.38607777]
[1748367223330,0.22461826,110100.0,110090.0,1.38607777]
[1748367224027,0.26671826,110100.0,110090.0,1.38607777]
[1748367227431,0.26671826,110100.0,110090.0,1.05068113]
[1748367227635,0.31141826,110100.0,110090.0,1.07428113]
[1748367227830,0.31141826,110100.0,110090.0,1.11848113]
[1748367228029,0.9758549,110100.0,110090.0,0.42362263]
[1748367228235,0.9958549,110100.0,110090.0,0.14012]
[1748367228435,0.9958549,110100.0,110090.0,0.18022739]
[1748367228739,0.9958549,110100.0,110090.0,0.36192589]
[1748367229642,0.9958549,110100.0,110090.0,0.3216985]
[1748367230541,0.9958549,110100.0,110090.0,0.37520113]
[1748367231133,0.9958549,110100.0,110090.0,0.37962344]
[1748367233342,0.76889826,110100.0,110090.0,0.37962344]
[1748367235957,0.76889826,110100.0,110090.0,0.32612081]
[1748367236145,0.1815785,110090.0,110080.0,0.05350263]
[1748367236342,0.181595,110080.0,110070.0,0.04268161]
[1748367236548,1.279715,110080.0,110070.0,0.06240752]
[1748367236748,0.1816115,110070.0,110060.0,0.04027409]
[1748367237049,1.10515421,110070.0,110060.0,0.03]
[1748367237250,1.10511574,110070.0,110060.0,0.03]
[1748367237754,1.10511574,110070.0,110060.0,0.03012]
[1748367239546,1.10511574,110070.0,110060.0,0.03412]
[1748367240457,1.10511574,110070.0,110060.0,0.034]
[1748367240755,0.8781591,110070.0,110060.0,0.034]
[1748367241066,1.10511574,110070.0,110060.0,0.034]
[1748367241360,1.10500937,110070.0,110060.0,0.03412]
[1748367241761,1.06936814,110070.0,110060.0,0.03412]
[1748367241962,1.10500589,110070.0,110060.0,0.03412]
[1748367242160,0.181628,110060.0,110050.0,7e-08]
[1748367242360,1.57666464,110060.0,110050.0,7e-08]
[1748367242558,1.57666464,110060.0,110050.0,0.00012007]
[1748367243167,1.57666464,110060.0,110050.0,0.00412007]
[1748367243662,1.57666464,110060.0,110050.0,0.00712007]
[1748367245265,1.57666464,110060.0,110050.0,0.01154238]
[1748367245763,1.66752864,110060.0,110050.0,0.01154238]
[1748367245962,1.66752864,110060.0,110050.0,0.01142238]
[1748367246662,1.66752864,110060.0,110050.0,0.01154238]
[1748367247649,1.66752864,110060.0,110050.0,0.00854238]
[1748367247854,1.23024864,110060.0,110050.0,0.00854238]
[1748367248060,1.66748864,110060.0,110050.0,0.00854238]
[1748367248265,0.912428,110060.0,110050.0,0.19018688]
[1748367248454,1.57662464,110060.0,110050.0,0.20018688]
[1748367248656,1.13938464,110060.0,110050.0,0.20018688]
[1748367248963,1.37662464,110060.0,110050.0,0.19618688]
[1748367249270,1.149668,110060.0,110050.0,0.19618688]
[1748367249668,1.149668,110060.0,110050.0,0.01454238]
[1748367250168,1.149668,110060.0,110050.0,0.19618688]
[1748367250565,1.37662464,110060.0,110050.0,0.01454238]
[1748367250770,1.149668,110060.0,110050.0,0.01454238]
[1748367250970,1.37662464,110060.0,110050.0,0.19618688]
[1748367251169,1.37662464,110060.0,110050.0,0.01454238]
[1748367251471,0.712428,110060.0,110050.0,0.01454238]
[1748367251659,1.37658464,110060.0,110050.0,0.01454238]
[1748367252069,1.37658464,110060.0,110050.0,0.19618688]
[1748367252473,1.149588,110060.0,110050.0,0.19618688]
[1748367253467,0.712428,110060.0,110050.0,0.19618688]
[1748367253661,1.149588,110060.0,110050.0,0.19618688]
[1748367254873,0.712428,110060.0,110050.0,0.19618688]
[1748367255170,1.37650464,110060.0,110050.0,0.19618688]
[1748367256369,0.181628,110060.0,110050.0,0.19618688]
[1748367256569,0.618708,110060.0,110050.0,0.19618688]
[1748367257773,0.618708,110060.0,110050.0,0.55698688]
[1748367257967,0.181628,110060.0,110050.0,0.55698688]
[1748367258164,0.18298805,110070.0,110060.0,0.181628]
[1748367258369,0.00136375,110070.0,110060.0,0.810588]
[1748367258564,0.18297525,110070.0,110060.0,1.41781873]
[1748367258978,0.00025626,110080.0,110070.0,0.1816115]
[1748367259268,0.71112831,110110.0,110100.0,0.181562]
[1748367259269,0.0019,110110.0,110100.0,0.181562]
[1748367259462,0.1834455,110110.0,110100.0,1.00747864]
[1748367259663,0.0019,110110.0,110100.0,1.00747864]
[1748367259866,0.1834455,110110.0,110100.0,1.34747864]
[1748367260071,0.1835655,110110.0,110100.0,1.00747864]
[1748367260378,0.1835655,110110.0,110100.0,1.02747864]
[1748367260675,0.1835655,110110.0,110100.0,0.800522]
[1748367260877,0.1845655,110110.0,110100.0,0.800522]
[1748367261563,0.1845655,110110.0,110100.0,0.84060729]
[1748367261964,0.1855655,110110.0,110100.0,0.84060729]
[1748367262158,0.1855655,110110.0,110100.0,0.85411797]
[1748367263178,0.1855655,110110.0,110100.0,0.82397642]
[1748367263486,0.1955655,110110.0,110100.0,0.43287268]
[1748367263778,0.1955655,110110.0,110100.0,0.79367268]
[1748367264568,0.1955655,110110.0,110100.0,0.68587268]
[1748367264766,0.1955655,110110.0,110100.0,0.79367268]
[1748367269569,0.1855655,110110.0,110100.0,0.79367268]
[1748367272371,1.30595442,110110.0,110100.0,0.13]
[1748367272573,1.53595442,110110.0,110100.0,0.13]
[1748367273774,1.53591442,110110.0,110100.0,0.13]
[1748367274381,1.3029255,110110.0,110100.0,0.13]
[1748367274582,1.53591442,110110.0,110100.0,0.13]
[1748367275879,1.53591442,110110.0,110100.0,0.13442231]
[1748367277579,1.57761442,110110.0,110100.0,0.13442231]
[1748367278881,0.5463655,110110.0,110100.0,0.31598431]
[1748367279081,0.1855655,110110.0,110100.0,0.71928431]
[1748367279291,0.6220055,110110.0,110100.0,0.76038431]
[1748367279488,0.6218855,110110.0,110100.0,0.76038431]
[1748367279786,0.6657055,110110.0,110100.0,0.80378431]
[1748367279978,0.2292655,110110.0,110100.0,0.80378431]
[1748367280178,0.6656655,110110.0,110100.0,0.80378431]
[1748367280489,0.00402,110110.0,110100.0,0.92154431]
[1748367280681,0.1855655,110110.0,110100.0,0.92154431]
[1748367280989,0.1854455,110110.0,110100.0,1.14453323]
[1748367281191,0.1855655,110110.0,110100.0,1.00154431]
[1748367281377,0.1854455,110110.0,110100.0,1.00154431]
[1748367281578,0.1855655,110110.0,110100.0,1.00154431]
[1748367282680,0.1855655,110110.0,110100.0,0.89378431]
[1748367282984,0.1855655,110110.0,110100.0,1.00154431]
[1748367283888,0.2275655,110110.0,110100.0,1.00154431]
[1748367288786,0.2275655,110110.0,110100.0,1.05489433]
[1748367289589,0.3132655,110110.0,110100.0,1.05489433]
[1748367289990,0.2717655,110110.0,110100.0,1.05489433]
[1748367290191,0.6637255,110110.0,110100.0,1.05489433]
[1748367290393,0.6636055,110110.0,110100.0,1.05489433]
[1748367290695,0.6637255,110110.0,110100.0,1.05489433]
[1748367292192,0.2275655,110110.0,110100.0,1.05489433]
[1748367293697,0.2675655,110110.0,110100.0,1.05489433]
[1748367299590,0.7035255,110110.0,110100.0,1.05489433]
[1748367300086,0.2675655,110110.0,110100.0,1.05489433]
[1748367300292,0.0039,110110.0,110100.0,1.49215569]
[1748367300593,0.26687206,110120.0,110110.0,0.1815455]
[1748367300802,0.26687206,110120.0,110110.0,0.7346455]
[1748367300999,0.22447206,110120.0,110110.0,0.7752455]
[1748367301202,0.22459206,110120.0,110110.0,0.7752455]
[1748367301405,0.22447206,110120.0,110110.0,0.7752455]
[1748367301595,0.22459206,110120.0,110110.0,0.7752455]
[1748367302003,0.22659206,110120.0,110110.0,0.7752455]
[1748367302409,0.22647206,110120.0,110110.0,0.7752455]
[1748367302697,0.00225626,110120.0,110110.0,1.38585688]
[1748367302886,0.18366526,110120.0,110110.0,0.88859552]
[1748367303092,0.22508526,110120.0,110110.0,0.99603552]
[1748367303294,0.26728526,110120.0,110110.0,0.99603552]
[1748367303601,0.30728526,110120.0,110110.0,0.99603552]
[1748367303994,0.30528526,110120.0,110110.0,0.99603552]
[1748367304300,0.54254662,110120.0,110110.0,0.41719552]
[1748367304903,0.54254662,110120.0,110110.0,0.23565002]
[1748367305203,0.54154662,110120.0,110110.0,0.42161783]
[1748367306294,0.31428526,110120.0,110110.0,0.42161783]
[1748367307892,0.31428526,110120.0,110110.0,0.36826781]
[1748367308289,0.31428526,110120.0,110110.0,0.42161783]
[1748367308596,0.57707625,110120.0,110110.0,0.14442231]
[1748367308800,0.57707481,110120.0,110110.0,0.14442231]
[1748367309098,0.57707481,110120.0,110110.0,0.18472309]
[1748367309997,0.57707481,110120.0,110110.0,0.36626849]
[1748367310198,0.57707481,110120.0,110110.0,0.32596771]
[1748367311101,0.54154662,110120.0,110110.0,0.36627741]
[1748367311294,0.57708208,110120.0,110110.0,0.14442231]
[1748367311696,0.57708208,110120.0,110110.0,0.32596781]
[1748367312705,0.57708208,110120.0,110110.0,0.36627371]
[1748367313098,0.34982072,110120.0,110110.0,0.36627371]
[1748367313297,0.57708208,110120.0,110110.0,0.36627371]
[1748367313499,0.78562072,110120.0,110110.0,0.36627371]
[1748367313701,0.78562072,110120.0,110110.0,0.40877371]
[1748367314198,0.78562072,110120.0,110110.0,0.49287371]
[1748367314803,0.78562072,110120.0,110110.0,0.45256781]
[1748367315197,0.78562072,110120.0,110110.0,0.36846781]
[1748367315398,0.75008526,110120.0,110110.0,0.40877067]
[1748367315597,0.78561843,110120.0,110110.0,0.40877067]
[1748367316200,1.01287979,110120.0,110110.0,0.40877067]
[1748367317207,0.34981843,110120.0,110110.0,0.40877067]
[1748367317502,0.34981843,110120.0,110110.0,1.15831919]
[1748367317503,0.29961843,110120.0,110110.0,1.15831919]
[1748367317701,0.00125626,110120.0,110110.0,1.27122116]
[1748367318005,0.00113626,110120.0,110110.0,1.56517672]
[1748367318208,0.00125626,110120.0,110110.0,1.56517672]
[1748367318416,0.18278526,110120.0,110110.0,1.56517672]
[1748367319594,0.18278526,110120.0,110110.0,1.56515476]
[1748367319995,0.00125626,110120.0,110110.0,1.45496917]
[1748367320401,0.00113626,110120.0,110110.0,1.45496917]
[1748367320609,0.00113626,110120.0,110110.0,1.98150517]
[1748367320610,0.00125626,110120.0,110110.0,1.98150517]
[1748367320904,0.00113626,110120.0,110110.0,1.98150517]
[1748367321114,0.00125626,110120.0,110110.0,1.98150517]
[1748367321294,0.18178526,110120.0,110110.0,1.75424381]
[1748367321499,0.18178526,110120.0,110110.0,1.75524381]
[1748367321803,0.22208526,110120.0,110110.0,1.8089394]
[1748367322104,0.22208526,110120.0,110110.0,1.3732194]
[1748367322307,0.44934662,110120.0,110110.0,0.4810579]
[1748367322616,0.48984662,110120.0,110110.0,0.9334034]
[1748367322798,0.30068526,110120.0,110110.0,0.9334034]
[1748367323899,0.26018526,110120.0,110110.0,0.9434034]
[1748367325302,0.03835626,110120.0,110110.0,1.17066476]
[1748367325512,0.03835626,110120.0,110110.0,1.98346517]
[1748367325719,0.04326288,110140.0,110130.0,0.1815125]
[1748367326009,0.22475888,110140.0,110130.0,0.84319474]
[1748367326195,0.00438288,110140.0,110130.0,1.15677386]
[1748367326400,0.00438288,110140.0,110130.0,1.36737386]
[1748367326616,0.18587888,110140.0,110130.0,1.36737386]
[1748367326916,0.18575888,110140.0,110130.0,1.23104684]
[1748367327105,0.18587888,110140.0,110130.0,1.23104684]
[1748367327311,0.00638288,110140.0,110130.0,1.23104684]
[1748367327698,0.18787888,110140.0,110130.0,1.23104684]
[1748367327909,0.18787888,110140.0,110130.0,1.63551759]
[1748367327910,0.00838288,110140.0,110130.0,1.63551759]
[1748367328097,0.00838288,110140.0,110130.0,1.84551759]
[1748367328301,0.00626288,110140.0,110130.0,1.62248775]
[1748367328501,0.00738288,110140.0,110130.0,1.62248775]
[1748367328906,0.00602,110140.0,110130.0,1.85531986]
[1748367329108,0.00602,110140.0,110130.0,2.29095986]
[1748367329306,0.0039,110140.0,110130.0,2.29095986]
[1748367329501,0.00502,110140.0,110130.0,2.29095986]
[1748367329713,0.00502,110140.0,110130.0,2.25285986]
[1748367331211,0.00502,110140.0,110130.0,1.74714288]
[1748367331401,0.00502,110140.0,110130.0,2.28994288]
[1748367331601,0.00502,110140.0,110130.0,2.35663708]
[1748367331802,0.0049,110140.0,110130.0,2.35663708]
[1748367332122,0.00502,110140.0,110130.0,2.21166406]
[1748367332416,0.00402,110140.0,110130.0,2.334002]
[1748367332720,0.00402,110140.0,110130.0,2.4009073]
[1748367333308,0.00302,110140.0,110130.0,2.4009073]
[1748367334217,0.00013626,110150.0,110140.0,0.181496]
[1748367334509,0.001,110160.0,110150.0,0.41431161]
[1748367334714,0.001,110160.0,110150.0,1.47201637]
[1748367335311,0.1824631,110160.0,110150.0,1.47201637]
[1748367335519,0.1824631,110160.0,110150.0,1.1990795]
[1748367335706,0.1824631,110160.0,110150.0,1.23917428]
[1748367335707,0.1835831,110160.0,110150.0,1.23917428]
[1748367336017,0.00212,110160.0,110150.0,1.23917428]
[1748367336335,0.00212,110160.0,110150.0,1.86747161]
[1748367336915,0.003,110160.0,110150.0,1.92096853]
[1748367337219,0.00312,110160.0,110150.0,1.92096853]
[1748367337407,0.00312,110160.0,110150.0,1.86747161]
[1748367338300,0.00312,110160.0,110150.0,1.88088254]
[1748367338711,0.00312,110160.0,110150.0,1.93437946]
[1748367339111,0.00312,110160.0,110150.0,1.88088254]
[1748367339614,0.00203626,110170.0,110160.0,0.1814631]
[1748367339816,0.0421,110180.0,110170.0,0.1814466]
[1748367340014,0.0421,110180.0,110170.0,1.37231139]
[1748367340214,0.0421,110180.0,110170.0,1.41311139]
[1748367340718,0.04222,110180.0,110170.0,1.18027928]
[1748367341221,0.2236501,110180.0,110170.0,1.18027928]
[1748367341427,0.04222,110180.0,110170.0,1.18027928]
[1748367341602,0.2236501,110180.0,110170.0,1.18027928]
[1748367341809,0.2246501,110180.0,110170.0,1.07307928]
[1748367342007,0.2638501,110180.0,110170.0,0.98027928]
[1748367342511,0.3067501,110180.0,110170.0,0.98027928]
[1748367342925,0.12532,110180.0,110170.0,0.98027928]
[1748367343217,0.2675501,110180.0,110170.0,1.20027928]
[1748367343419,0.3066301,110180.0,110170.0,0.99027928]
[1748367343718,0.08342,110180.0,110170.0,0.99027928]
[1748367343921,0.2648501,110180.0,110170.0,0.99027928]
[1748367344520,0.2648501,110180.0,110170.0,0.87027928]
[1748367344723,0.2648501,110180.0,110170.0,1.04027928]
[1748367344919,0.04422,110180.0,110170.0,1.04027928]
[1748367345117,0.04422,110180.0,110170.0,1.21027928]
[1748367345324,0.0441,110180.0,110170.0,1.21027928]
[1748367345518,0.04422,110180.0,110170.0,1.44311139]
[1748367346724,0.04422,110180.0,110170.0,1.10307928]
[1748367346912,0.04422,110180.0,110170.0,1.64711928]
[1748367347114,0.2256501,110180.0,110170.0,1.64711928]
[1748367347317,0.2652501,110180.0,110170.0,1.21023928]
[1748367348227,0.2652501,110180.0,110170.0,1.24933928]
[1748367348423,0.2652501,110180.0,110170.0,1.14217928]
[1748367348728,0.2652501,110180.0,110170.0,1.68581928]
[1748367349027,0.2652501,110180.0,110170.0,1.14217928]
[1748367349226,0.2652501,110180.0,110170.0,1.68565928]
[1748367349933,0.2652501,110180.0,110170.0,1.912623]
[1748367350725,0.2652501,110180.0,110170.0,1.369143]
[1748367350914,0.2652501,110180.0,110170.0,1.48072531]
[1748367353531,0.2652501,110180.0,110170.0,1.25376159]
[1748367353722,0.2652501,110180.0,110170.0,1.48072531]
[1748367354234,0.2652501,110180.0,110170.0,1.37356531]
[1748367354530,0.08382,110180.0,110170.0,1.88037263]
[1748367355626,0.08382,110180.0,110170.0,1.65340891]
[1748367355926,0.08382,110180.0,110170.0,1.88037263]
[1748367356129,0.2652503,110180.0,110170.0,1.65340891]
[1748367356322,0.2652503,110180.0,110170.0,1.44205263]
[1748367356522,0.2652503,110180.0,110170.0,1.49543332]
[1748367356928,0.08382,110180.0,110170.0,1.49543332]
[1748367357628,0.2652503,110180.0,110170.0,1.49543332]
[1748367357814,0.08382,110180.0,110170.0,1.49543332]
[1748367358020,0.08382,110180.0,110170.0,1.2684696]
[1748367358225,0.08382,110180.0,110170.0,1.1599496]
[1748367358424,0.2652503,110180.0,110170.0,1.49543332]
[1748367358838,0.2652503,110180.0,110170.0,1.93359332]
[1748367359831,0.2652503,110180.0,110170.0,1.1885696]
[1748367360033,0.2652503,110180.0,110170.0,1.22504729]
[1748367360630,0.52221402,110180.0,110170.0,0.95414729]
[1748367360826,0.2652503,110180.0,110170.0,0.95414729]
[1748367361328,0.0837,110180.0,110170.0,1.22201101]
[1748367361637,0.08382,110180.0,110170.0,1.30321101]
[1748367362422,0.0837,110180.0,110170.0,1.50673562]
[1748367362627,0.04422,110180.0,110170.0,1.55217674]
[1748367362829,0.0441,110180.0,110170.0,1.50673562]
[1748367363147,0.04422,110180.0,110170.0,1.44425263]
[1748367363336,0.04422,110180.0,110170.0,1.51115793]
[1748367365847,0.04422,110180.0,110170.0,1.95107793]
[1748367366354,0.003,110180.0,110170.0,1.95107793]
[1748367366526,0.0445,110180.0,110170.0,1.51115793]
[1748367366725,0.003,110180.0,110170.0,1.51115793]
[1748367366935,0.00312,110180.0,110170.0,1.48974591]
[1748367367138,0.003,110180.0,110170.0,1.48974591]
[1748367367338,0.00312,110180.0,110170.0,1.48974591]
[1748367367537,0.003,110180.0,110170.0,1.58312712]
[1748367367929,0.00312,110180.0,110170.0,1.58312712]
[1748367368129,0.00212,110180.0,110170.0,1.58412712]
[1748367368341,0.00112,110180.0,110170.0,1.58412712]
[1748367368541,0.00112,110180.0,110170.0,1.58512712]
[1748367369532,0.00112,110180.0,110170.0,1.3581634]
[1748367369732,0.00112,110180.0,110170.0,1.58512712]
[1748367369941,0.001,110180.0,110170.0,1.58512712]
[1748367370146,0.00112,110180.0,110170.0,1.58512712]
[1748367370345,0.001,110180.0,110170.0,1.58512712]
[1748367370544,0.00112,110180.0,110170.0,1.3581634]
[1748367370735,0.00112,110180.0,110170.0,1.58512712]
[1748367371243,0.00112,110180.0,110170.0,1.58070481]
[1748367371440,0.00112,110180.0,110170.0,1.53521153]
[1748367371742,0.00112,110180.0,110170.0,1.48731496]
[1748367372331,0.00112,110180.0,110170.0,1.58069617]
[1748367374543,0.00112,110180.0,110170.0,1.53521153]
[1748367374836,0.00112,110180.0,110170.0,1.58068458]
[1748367376447,0.00112,110180.0,110170.0,1.58510689]
[1748367377142,0.00112,110180.0,110170.0,1.58610689]
[1748367377846,0.00112,110180.0,110170.0,1.46400689]
[1748367378734,0.00112,110180.0,110170.0,1.42209013]
[1748367378932,0.00112,110180.0,110170.0,1.19512641]
[1748367379137,0.00112,110180.0,110170.0,1.35858459]
[1748367379347,0.00112,110180.0,110170.0,1.58554831]
[1748367379549,0.00112,110180.0,110170.0,1.71250437]
[1748367380444,0.00112,110180.0,110170.0,1.58554831]
[1748367380644,0.00112,110180.0,110170.0,1.54904619]
[1748367381937,0.00112,110180.0,110170.0,1.71250437]
[1748367382642,0.00112,110180.0,110170.0,1.53408386]
[1748367382844,0.00112,110180.0,110170.0,2.61458831]
[1748367383144,0.00112,110180.0,110170.0,2.74151656]
[1748367383447,0.00112,110180.0,110170.0,3.00037605]
[1748367383635,0.00112,110180.0,110170.0,2.83691787]
[1748367384350,0.00112,110180.0,110170.0,2.60553184]
[1748367384539,0.00112,110180.0,110170.0,2.83249556]
[1748367385146,0.00112,110180.0,110170.0,2.69942181]
[1748367385449,0.00112,110180.0,110170.0,2.92638553]
[1748367386352,0.00112,110180.0,110170.0,3.02638553]
[1748367387248,0.00112,110180.0,110170.0,2.98094029]
[1748367387549,1e-07,110180.0,110170.0,3.03080175]
[1748367387748,0.00013626,110190.0,110180.0,0.1814305]
[1748367387951,0.1029,110200.0,110190.0,0.1814141]
[1748367388149,0.1029,110200.0,110190.0,1.4697837]
[1748367388642,0.10302,110200.0,110190.0,1.4697837]
[1748367390250,0.10302,110200.0,110190.0,1.9066237]
[1748367391241,0.10402,110200.0,110190.0,1.9066237]
[1748367391452,0.10402,110200.0,110190.0,1.41622867]
[1748367391651,0.10402,110200.0,110190.0,1.63422495]
[1748367391851,0.10402,110200.0,110190.0,1.86118867]
[1748367393157,0.10402,110200.0,110190.0,1.90660757]
[1748367394353,0.1039,110200.0,110190.0,1.90660757]
[1748367394654,0.10402,110200.0,110190.0,1.90660757]
[1748367396450,0.10402,110200.0,110190.0,1.86118867]
[1748367396756,0.10302,110200.0,110190.0,1.90660825]
[1748367397349,0.10302,110200.0,110190.0,1.90660654]
[1748367397744,0.10302,110200.0,110190.0,1.83955569]
[1748367397959,0.10302,110200.0,110190.0,1.90658539]
[1748367398159,0.10302,110200.0,110190.0,1.83955569]
[1748367398550,0.10302,110200.0,110190.0,1.9065834]
[1748367398750,0.10302,110200.0,110190.0,1.83955569]
[1748367399153,0.14282,110200.0,110190.0,2.0244834]
[1748367400454,0.14282,110200.0,110190.0,1.95745569]
[1748367401062,0.14282,110200.0,110190.0,1.95745348]
[1748367401363,0.22422,110200.0,110190.0,1.18552976]
[1748367401656,0.22422,110200.0,110190.0,1.01885272]
[1748367401858,0.22422,110200.0,110190.0,1.56581644]
[1748367402159,0.22422,110200.0,110190.0,1.47192647]
[1748367403060,0.22422,110200.0,110190.0,1.51734873]
[1748367403561,0.22522,110200.0,110190.0,1.51734873]
[1748367404263,0.22522,110200.0,110190.0,1.55664873]
[1748367404463,0.22522,110200.0,110190.0,1.66804579]
[1748367404660,0.22522,110200.0,110190.0,1.76193576]
[1748367407565,0.22522,110200.0,110190.0,1.73210559]
[1748367407763,0.22522,110200.0,110190.0,1.51125956]
[1748367409259,0.22522,110200.0,110190.0,1.36383956]
[1748367409460,0.22522,110200.0,110190.0,1.27775153]
[1748367409762,0.22522,110200.0,110190.0,1.51740469]
[1748367411673,0.22522,110200.0,110190.0,1.55510469]
[1748367413168,0.22522,110200.0,110190.0,1.55513823]
[1748367414772,0.22522,110200.0,110190.0,1.32817451]
[1748367414974,0.22522,110200.0,110190.0,1.55513823]
[1748367415277,0.22522,110200.0,110190.0,1.6490282]
[1748367416283,0.22522,110200.0,110190.0,1.58194879]
[1748367416579,0.10402,110200.0,110190.0,1.52042904]
[1748367416783,0.10402,110200.0,110190.0,1.53375446]
[1748367416981,0.10402,110200.0,110190.0,1.43986449]
[1748367417483,0.10402,110200.0,110190.0,1.43987823]
[1748367424282,0.10402,110200.0,110190.0,1.1003341]
[1748367424977,0.10402,110200.0,110190.0,1.0994541]
[1748367425385,0.1039,110200.0,110190.0,1.15313267]
[1748367425680,0.1039,110200.0,110190.0,1.38009639]
[1748367426183,0.1039,110200.0,110190.0,1.15313267]
[1748367426976,0.2852977,110200.0,110190.0,1.15313267]
[1748367427179,0.95774142,110200.0,110190.0,0.17547474]
[1748367427383,1.29848942,110200.0,110190.0,0.41056675]
[1748367427584,1.85928942,110200.0,110190.0,0.18367781]
[1748367427989,2.00207625,110200.0,110190.0,0.13]
[1748367428885,2.04077625,110200.0,110190.0,0.13]
[1748367429083,0.1814142,110190.0,110180.0,0.0403944]
[1748367429283,0.1814142,110190.0,110180.0,0.1303944]
[1748367429284,1.12472475,110190.0,110180.0,0.1303944]
[1748367429477,0.1814472,110170.0,110160.0,0.4672202]
[1748367429681,1.21465092,110170.0,110160.0,0.4572202]
[1748367429883,1.30542292,110170.0,110160.0,0.40360849]
[1748367430190,1.30542292,110170.0,110160.0,0.44904223]
[1748367430384,1.30542292,110170.0,110160.0,0.40361213]
[1748367430590,1.82542292,110170.0,110160.0,0.13136149]
[1748367430976,1.86212292,110170.0,110160.0,0.13436149]
[1748367431374,1.89788625,110170.0,110160.0,0.13436149]
[1748367431579,1.90737386,110170.0,110160.0,0.13436149]
[1748367431974,0.1814636,110160.0,110150.0,0.00013626]
[1748367432187,1.18556732,110160.0,110150.0,0.09013626]
[1748367432389,1.56214732,110160.0,110150.0,0.09013626]
[1748367432685,0.1814966,110140.0,110130.0,0.4044971]
[1748367432892,0.1814966,110140.0,110130.0,0.5291211]
[1748367432893,0.88394032,110140.0,110130.0,0.5291211]
[1748367433191,1.41043632,110140.0,110130.0,0.3116211]
[1748367433486,1.62043632,110140.0,110130.0,0.13012]
[1748367433698,1.96973632,110140.0,110130.0,0.13012]
[1748367433910,2.07697632,110140.0,110130.0,0.13012]
[1748367434189,2.07697632,110140.0,110130.0,0.13312]
[1748367434190,3.57697632,110140.0,110130.0,0.13312]
[1748367435094,3.57697632,110140.0,110130.0,0.13612]
[1748367436991,3.57697632,110140.0,110130.0,1e-08]
[1748367437189,3.3500126,110140.0,110130.0,1e-08]
[1748367437495,3.57697632,110140.0,110130.0,1e-08]
[1748367438690,3.57897632,110140.0,110130.0,1e-08]
[1748367439090,0.181513,110130.0,110120.0,0.04383925]
[1748367439293,1.15287672,110130.0,110120.0,0.07383925]
[1748367439596,1.49368072,110130.0,110120.0,0.07383925]
[1748367442395,0.925913,110130.0,110120.0,0.25536905]
[1748367442584,0.685913,110130.0,110120.0,0.34106905]
[1748367442790,1.121753,110130.0,110120.0,0.34106905]
[1748367443297,0.686033,110130.0,110120.0,0.34106905]
[1748367443489,1.121753,110130.0,110120.0,0.34106905]
[1748367443798,0.325233,110130.0,110120.0,0.34106905]
[1748367443996,0.00012,110130.0,110120.0,1.03623064]
[1748367444300,0.6172334,110130.0,110120.0,0.83623064]
[1748367444496,0.43572,110130.0,110120.0,0.83623064]
[1748367444698,0.6173532,110130.0,110120.0,0.83623064]
[1748367445094,0.43584,110130.0,110120.0,0.83623064]
[1748367446191,0.00012,110130.0,110120.0,0.83623064]
[1748367446495,0.00012,110130.0,110120.0,0.92883277]
[1748367446797,0.00012,110130.0,110120.0,1.06319436]
[1748367447104,0.61988333,110150.0,110140.0,0.1814967]
[1748367447297,0.24298333,110150.0,110140.0,0.6122967]
[1748367447496,0.24298333,110150.0,110140.0,0.6502967]
[1748367447802,0.67882333,110150.0,110140.0,0.6869967]
[1748367448499,0.90578705,110150.0,110140.0,0.5055]
[1748367448800,0.98098705,110150.0,110140.0,0.6869966]
[1748367449103,0.98598705,110150.0,110140.0,0.6869966]
[1748367450094,0.75902333,110150.0,110140.0,0.6869966]
[1748367450294,0.98598705,110150.0,110140.0,0.6869966]
[1748367450687,0.75902333,110150.0,110140.0,0.6869966]
[1748367451400,0.24810333,110150.0,110140.0,0.82135819]
[1748367451602,0.68378333,110150.0,110140.0,0.82135819]
[1748367453798,0.62378333,110150.0,110140.0,0.82135819]
[1748367456304,0.62378333,110150.0,110140.0,0.63986159]
[1748367456493,0.62378333,110150.0,110140.0,0.82135829]
[1748367456699,0.85074705,110150.0,110140.0,0.82135829]
[1748367457600,0.62378333,110150.0,110140.0,0.82135829]
[1748367457805,0.85074705,110150.0,110140.0,0.82135829]
[1748367458699,0.92674705,110150.0,110140.0,0.82135829]
[1748367459406,0.92674705,110150.0,110140.0,0.63986159]
[1748367459904,0.92674705,110150.0,110140.0,0.82135829]
[1748367460894,0.88854705,110150.0,110140.0,0.82135829]
[1748367461091,0.85074705,110150.0,110140.0,0.82135829]
[1748367464404,0.85066705,110150.0,110140.0,0.82135829]
[1748367466705,0.88976705,110150.0,110140.0,0.82135829]
[1748367467908,0.06582333,110150.0,110140.0,0.82135829]
[1748367468207,0.13020086,110200.0,110170.0,0.4594261]
[1748367468509,0.22283157,110220.0,110210.0,0.1813814]
[1748367468816,0.54282697,110220.0,110210.0,1.10697793]
[1748367469018,0.36126197,110220.0,110210.0,1.43256775]
[1748367469227,0.04138197,110220.0,110210.0,1.33870781]
[1748367469511,0.25842697,110220.0,110210.0,0.96204433]
[1748367469709,0.25854697,110220.0,110210.0,1.1167214]
[1748367470212,0.26154697,110220.0,110210.0,1.1167214]
[1748367470714,0.22164697,110220.0,110210.0,1.0094814]
[1748367471010,0.22164697,110220.0,110210.0,1.1167214]
[1748367471911,0.26554697,110220.0,110210.0,1.1167214]
[1748367472113,0.70094697,110220.0,110210.0,1.1166814]
[1748367472312,0.70894697,110220.0,110210.0,0.8281]
[1748367472509,0.70594697,110220.0,110210.0,0.80507868]
[1748367473515,0.70594697,110220.0,110210.0,0.98646018]
[1748367473700,0.70594697,110220.0,110210.0,0.80507868]
[1748367473906,0.70594697,110220.0,110210.0,0.98646018]
[1748367475415,0.70594697,110220.0,110210.0,0.80507868]
[1748367476112,0.70590697,110220.0,110210.0,0.80507868]
[1748367477904,0.70590697,110220.0,110210.0,0.84357868]